Cogmind - Beta 15 @@@ ROGUE MODE // 2025.06.19 @ 07:24:18 Player: CL-1C0 Result: Self-destructed Performance ------------- Evolutions (1) 500 Regions Visited (5) 1000 Robots Destroyed (14) 70 Value Destroyed (150) 150 Prototype IDs (23) 460 Alien Tech Used (0) 0 Bonus (300) 300 TOTAL SCORE: 2480 Bonus ------- Aligned with FarCom 300 Cogmind --------- Core Integrity 289/400 Matter 241/300 Energy 264/265 System Corruption 0% Temperature Cool (3) Movement Flying (34) Location -8/Mines Parts ------- > --- POWER (1) -------- Improved Ion Engine > --- PROPULSION (3) --- Flight Unit Flight Unit Flight Unit > --- UTILITY (3) ------ Transport Network Coupler Utility Shielding Light Armor Plating > --- WEAPON (2) ------- (None) > --- INVENTORY (5) ---- Flight Unit Flight Unit Flight Unit Grenade Launcher Longsword +1 Peak State ------------ > --- POWER ------------ Improved Ion Engine > --- PROPULSION ------- Flight Unit Flight Unit Flight Unit > --- UTILITY ---------- Transport Network Coupler Utility Shielding Light Armor Plating > --- WEAPON ----------- Grenade Launcher > --- INVENTORY -------- Flight Unit Flight Unit Flight Unit Longsword +1 [Rating: 10] Favorites ----------- Power Improved Ion Engine Engine Improved Ion Engine Propulsion Flight Unit Treads Light Treads Flight Unit Flight Unit Utility Utility Shielding Processor Transport Network Coupler Protection Utility Shielding Weapon Grenade Launcher Ballistic Gun Assault Rifle Launcher Grenade Launcher Build | -11 -10 -9 -9 -9 -8 ------- Run | Yrd Mat Mat Min Exi Min Slots Evolved 2 | . . 2 . . . Power . | . . . . . . Propulsion 1 | . . 1 . . . Utility 1 | . . 1 . . . Weapon . | . . . . . . Parts Attached 18 | . 4 9 2 . 3 Power 3 | . 1 2 . . . Engine 3 | . 1 2 . . . Core . | . . . . . . Reactor . | . . . . . . Propulsion 9 | . 2 3 2 . 2 Treads 1 | . . 1 . . . Leg . | . . . . . . Wheel . | . . . . . . Hover . | . . . . . . Flight 8 | . 2 2 2 . 2 Utility 3 | . . 3 . . . Device . | . . . . . . Storage . | . . . . . . Processor 1 | . . 1 . . . Hackware . | . . . . . . Protection 2 | . . 2 . . . Artifact . | . . . . . . Weapon 3 | . 1 1 . . 1 Energy Gun . | . . . . . . Energy Cannon . | . . . . . . Ballistic Gun 1 | . . 1 . . . Ballistic Cannon . | . . . . . . Launcher 2 | . 1 . . . 1 Special Weapon . | . . . . . . Impact Weapon . | . . . . . . Slashing Weapon . | . . . . . . Piercing Weapon . | . . . . . . Special Melee Weapon . | . . . . . . Unidentified Prototypes . | . . . . . . Parts Lost 4 | . . 4 . . . Power 2 | . . 2 . . . Propulsion 2 | . . 2 . . . Utility . | . . . . . . Weapon . | . . . . . . Highest Loss Streak 4 | . . 4 . . . To Critical Strikes . | . . . . . . Average Backups 4 | . 5 3 4 5 4 Power . | . 1 . . . . Propulsion 2 | . 3 1 2 3 3 Utility . | . . . . . . Weapon 1 | . 1 2 1 1 1 Tool/Special . | . . . . . . Unused Backups 8 | . . 4 . 1 3 Power 1 | . . 1 . . . Propulsion 6 | . . 3 . 1 2 Utility . | . . . . . . Weapon 1 | . . . . . 1 Tool/Special . | . . . . . . Average Slot Usage (%) 59 | . 23 49 66 77 79 Engine 9 | . 4 6 11 11 11 Flight 25 | . 9 22 27 33 33 Processor 8 | . . 5 11 11 11 Protection 13 | . . 7 16 22 22 Launcher 2 | . 9 3 . . 2 Peak Build Rating 10 | . 4 8 8 9 10 Average Rating 6 | . 1 4 7 8 9 On Entrance 5 | 6 . 4 6 8 9 Naked Turns 15 | . 15 . . . . Heaviest Build 11 | . 6 8 11 11 11 Greatest Support 12 | 3 8 12 12 12 12 Greatest Overweight (x) . | . . . . . . Average Overweight (x) . | . . . . . . Largest Inventory Capacity 5 | . 5 5 5 5 5 Average Capacity 5 | . 5 5 5 5 5 Most Carried 5 | . 5 5 5 5 5 Average Carried 4 | . 5 3 4 4 4 Final Capacity 5 | 5 5 5 5 5 5 Final Carried 5 | 5 5 4 5 5 5 Class Distribution -------------------- 52% | Mutant 47% | Scavenger-Mutant Dominant Class ---------------- Mutant | -9/Materials Scavenger-Mutant | -9/Mines Scavenger-Mutant | -9/Exiles Scavenger-Mutant | -8/Mines Resources | -11 -10 -9 -9 -9 -8 ----------- Run | Yrd Mat Mat Min Exi Min Matter Collected 403 | 200 11 161 30 . 1 Remotely . | . . . . . . Salvage Created 72 | . 22 15 . . 35 Parts 28 | . 6 7 . . 15 Haulers Intercepted . | . . . . . . Recyclers Shooed . | . . . . . . Parts Field Recycled . | . . . . . . Retrieved Matter . | . . . . . . Parts Self-Destructed . | . . . . . . Prevented . | . . . . . . Kills | -11 -10 -9 -9 -9 -8 ------- Run | Yrd Mat Mat Min Exi Min Combat Hostiles Destroyed 14 | . 3 3 . . 8 AOE 14 | . 3 3 . . 8 Classes Destroyed 1 | . 1 . . . . Swarmer 14 | . 3 3 . . 8 Best Kill Streak 8 | . 3 3 . . 8 Combat Bots Only 8 | . 3 3 . . 8 Max Kills in Single Turn 4 | . 3 3 . . 4 Gunslinging . | . . . . . . Exploded 4 | . 3 3 . . 4 Melee . | . . . . . . Uniques/NPCs Destroyed . | . . . . . . Combat | -11 -10 -9 -9 -9 -8 -------- Run | Yrd Mat Mat Min Exi Min Hostile Shots Fired 43 | . 2 18 8 . 15 Missed 24 | . 1 11 6 . 6 Hits 19 | . 1 7 2 . 9 Projectile 19 | . 1 7 2 . 9 Critical Strikes 1 | . . 1 . . . Damage Taken 306 | . 6 175 28 . 97 Core 111 | . . 76 18 . 17 Absorbed by Shields . | . . . . . . Core Remaining (%) 100 | 100 100 . . . . Volleys Fired 9 | . 1 5 . . 3 Largest 1 | . 1 1 . . 1 Hottest 30 | . 30 30 . . 30 Shots Fired 9 | . 1 5 . . 3 Gun 4 | . . 4 . . . Cannon . | . . . . . . Launcher 5 | . 1 1 . . 3 Special . | . . . . . . Kinetic 4 | . . 4 . . . Thermal . | . . . . . . Explosive 5 | . 1 1 . . 3 Electromagnetic . | . . . . . . Robot Hit Streak 1 | . 1 . . . 1 Robot Miss Streak 4 | . . 4 . . . Penetration Max . | . . . . . . Secondary Targets . | . . . . . . Shots Hit Robots 2 | . 1 . . . 1 Core Hits 12 | . 3 2 . . 7 Critical Kills . | . . . . . . Critical Parts Destroyed . | . . . . . . Critical Strikes . | . . . . . . Melee Attacks . | . . . . . . Impact . | . . . . . . Slashing . | . . . . . . Piercing . | . . . . . . Sneak Attacks . | . . . . . . Combat Hostiles . | . . . . . . Follow-up Attacks . | . . . . . . Damage Inflicted 663 | . 99 116 . . 448 Guns . | . . . . . . Cannons . | . . . . . . Explosions 663 | . 99 116 . . 448 Melee . | . . . . . . Ramming . | . . . . . . Kinetic . | . . . . . . Thermal . | . . . . . . Explosive 663 | . 99 116 . . 448 Electromagnetic . | . . . . . . Impact . | . . . . . . Slashing . | . . . . . . Piercing . | . . . . . . Highest Corruption . | . . . . . . Average Corruption . | . . . . . . Corruption Purged . | . . . . . . Corruption Blocked . | . . . . . . Overload Shots . | . . . . . . Overflow Damage 58 | . . 20 . . 38 Projectiles . | . . . . . . Explosions 58 | . . 20 . . 38 Melee . | . . . . . . Knockbacks . | . . . . . . Impact . | . . . . . . Kinetic . | . . . . . . Secondary . | . . . . . . Self-Inflicted Damage 52 | . . 29 . . 23 Shots 2 | . . 1 . . 1 Rammed . | . . . . . . Targets Rammed . | . . . . . . Kicked . | . . . . . . Crushed . | . . . . . . Highest Temperature 12 | . . 12 2 . . Average Temperature 7 | . . 12 2 . . Received Heat Transfer 60 | . . 45 15 . . Siege Activations . | . . . . . . Martial Activations . | . . . . . . Shielding Activations . | . . . . . . Robots Disrupted . | . . . . . . Combat Hostiles . | . . . . . . Robots Corrupted . | . . . . . . Combat Hostiles . | . . . . . . Parts Fried . | . . . . . . Impact Corruptions . | . . . . . . Robots Melted . | . . . . . . Combat Hostiles . | . . . . . . Parts Melted . | . . . . . . Heat Transferred . | . . . . . . Parts Sabotaged . | . . . . . . Parts Stolen . | . . . . . . Parts Stripped . | . . . . . . Power Chain Reactions . | . . . . . . Alert | -11 -10 -9 -9 -9 -8 ------- Run | Yrd Mat Mat Min Exi Min Maximum Alert Level 1 | . . . . . 1 Low Security (%) 92 | . 100 100 100 . 27 Level 1 7 | . . . . . 72 Level 2 . | . . . . . . Level 3 . | . . . . . . Level 4 . | . . . . . . Level 5 . | . . . . . . High Security . | . . . . . . Max Security . | . . . . . . Peak Influence 214 | . 81 95 65 . 214 Initial 29 | . . 29 21 . . Average 53 | . 44 55 25 . 163 Influence Increases 516 | . 81 116 105 . 214 Destroy 0b10 Robot/C 280 | . 60 60 . . 160 Destroy Leader 40 | . 10 10 . . 20 Disable Machine 15 | . . 15 . . . Destroy Structure 31 | . 11 1 . . 19 Lose Combat Pursuer 150 | . . 30 105 . 15 Influence Decreases 322 | . 10 132 115 45 20 Entered New Map 121 | . . 42 34 45 . Time Decay 141 | . 10 50 61 . 20 Lost Part 40 | . . 40 . . . Lost Ally 20 | . . . 20 . . Squads Dispatched 1 | . . 1 . . . Investigation 1 | . . 1 . . . Extermination . | . . . . . . Reinforcement . | . . . . . . Assault . | . . . . . . Garrison . | . . . . . . Intercept . | . . . . . . Searches Triggered . | . . . . . . Construction Impeded . | . . . . . . Haulers Reinforced . | . . . . . . Active Scanning Responses . | . . . . . . Cargo Convoy Interrupts . | . . . . . . Stealth | -11 -10 -9 -9 -9 -8 --------- Run | Yrd Mat Mat Min Exi Min Distress Signals 3 | . . 3 . . . Communications Jammed . | . . . . . . Distress Signals . | . . . . . . Times Spotted 36 | . 3 13 11 . 9 Peak Tracking Total 9 | . 3 9 5 . 8 Tactical Retreats 4 | . . 1 2 . 1 Traps | -11 -10 -9 -9 -9 -8 ------- Run | Yrd Mat Mat Min Exi Min Traps Triggered 3 | . 1 2 . . . Indirectly . | . . . . . . Trap Hack Attempts . | . . . . . . Triggered . | . . . . . . Disarmed . | . . . . . . Reprogrammed . | . . . . . . Reused . | . . . . . . Traps Extracted . | . . . . . . Installed . | . . . . . . Triggered . | . . . . . . Most Traps Carried 1 | . . . 1 . . Machines | -11 -10 -9 -9 -9 -8 ---------- Run | Yrd Mat Mat Min Exi Min Machines Disabled 1 | . . 1 . . . Max in Single Turn 1 | . . 1 . . . Machines Repaired . | . . . . . . Machines Dismantled . | . . . . . . Machines Sabotaged . | . . . . . . Overloaded Fab Kills . | . . . . . . Hacking | -11 -10 -9 -9 -9 -8 --------- Run | Yrd Mat Mat Min Exi Min Machines Accessed 1 | . . . . 1 . Terminals . | . . . . . . Fabricators . | . . . . . . Repair Stations . | . . . . . . Recycling Units . | . . . . . . Scanalyzers . | . . . . . . Garrison Access . | . . . . . . Total Hacks 1 | . . . . 1 . Successful 1 | . . . . 1 . Failed . | . . . . . . Catastrophic . | . . . . . . Database Lockouts . | . . . . . . Manual 1 | . . . . 1 . Terminals . | . . . . . . Fabricators . | . . . . . . Repair Stations . | . . . . . . Recycling Units . | . . . . . . Scanalyzers . | . . . . . . Garrison Access . | . . . . . . Terminal Hacks 1 | . . . . 1 . Proto ID Catalog 1 | . . . . 1 . Fabricator Hacks . | . . . . . . Repair Station Hacks . | . . . . . . Recycling Unit Hacks . | . . . . . . Scanalyzer . | . . . . . . Garrison Access Hacks . | . . . . . . Unauthorized Hacks . | . . . . . . Terminals . | . . . . . . Fabricators . | . . . . . . Repair Stations . | . . . . . . Recycling Units . | . . . . . . Scanalyzers . | . . . . . . Garrison Access . | . . . . . . Data Cores Recovered . | . . . . . . Used . | . . . . . . Hacking Detections . | . . . . . . Full Trace Events . | . . . . . . Feedback Events . | . . . . . . Feedback Blocked . | . . . . . . Robot Schematics Acquired . | . . . . . . Robots Built . | . . . . . . Authchips . | . . . . . . Time . | . . . . . . Total Robot Build Rating . | . . . . . . Part Schematics Acquired . | . . . . . . Parts Built . | . . . . . . Authchips . | . . . . . . Time . | . . . . . . Total Part Build Rating . | . . . . . . Parts Repaired . | . . . . . . Time . | . . . . . . Parts Recycled . | . . . . . . Recycled Matter . | . . . . . . Retrieved Matter . | . . . . . . Retrieved Components . | . . . . . . Parts Scanalyzed . | . . . . . . Part Schematics Acquired . | . . . . . . Parts Damaged . | . . . . . . Bothacking | -11 -10 -9 -9 -9 -8 ------------ Run | Yrd Mat Mat Min Exi Min Used RIF Installer . | . . . . . . Robots Hacked . | . . . . . . Non-combat . | . . . . . . Combat . | . . . . . . Robot Hacks Applied . | . . . . . . Relay Couplers Released . | . . . . . . Fabnet Peak Effective % . | . . . . . . Robots Rewired . | . . . . . . Allies Hacked . | . . . . . . Hacks Repelled . | . . . . . . Allies | -11 -10 -9 -9 -9 -8 -------- Run | Yrd Mat Mat Min Exi Min Total Allies 1 | . . . 1 . . Largest Group 1 | . . . 1 . . Highest-Rated Group 31 | . . . 31 . . Highest-Rated Ally 31 | . . . 31 . . Total Orders . | . . . . . . Ally Attacks 4 | . . . 4 . . Total Damage 85 | . . . 85 . . Kills . | . . . . . . Allies Corrupted . | . . . . . . Allies Melted . | . . . . . . Intel | -11 -10 -9 -9 -9 -8 ------- Run | Yrd Mat Mat Min Exi Min Active Infowar (turns) 337 | . . 70 152 75 40 T.N.C. 337 | . . 70 152 75 40 Robot Analysis Total . | . . . . . . Derelict Logs Recovered 1 | . . . 1 . . Drone Launches . | . . . . . . Drone Recoveries . | . . . . . . Exploration | -11 -10 -9 -9 -9 -8 ------------- Run | Yrd Mat Mat Min Exi Min Turns Passed 439 | . 53 119 152 75 40 Spaces Moved 897 | 1 92 179 328 215 82 Core 51 | 1 50 . . . . Treads . | . . . . . . Legs . | . . . . . . Wheels . | . . . . . . Hover . | . . . . . . Flight 846 | . 42 179 328 215 82 Fastest Speed 34 | 50 37 34 34 34 34 Average Speed 36 | 50 44 36 35 34 34 Slowest Speed 57 | 50 50 57 37 34 34 Overloaded Moves . | . . . . . . Propulsion Burnouts . | . . . . . . Robots Hopped 4 | . . 4 . . . Potential Cave-ins . | . . . . . . Cave-ins Triggered . | . . . . . . Exploration Rate (%) 34 | 2 26 24 57 60 36 Regions Visited 5 Branch Regions 3 Pre-discovered Areas 1 | . . . 1 . . Known Exits Taken . | . . . . . . Unknown Exits Taken 5 | 1 1 1 1 1 . Scrap Searched 1 | . . . 1 . . Spaces Dug 11 | . . . . . 11 Terrain Destroyed 32 | . 11 1 . . 20 Melee . | . . . . . . Projectile . | . . . . . . AOE 32 | . 11 1 . . 20 Terrain Rammed . | . . . . . . Walls Destroyed . | . . . . . . Machines Disabled . | . . . . . . Actions | -11 -10 -9 -9 -9 -8 --------- Run | Yrd Mat Mat Min Exi Min Total 992 | . 99 222 363 216 92 Wait 51 | . . 24 26 . 1 Move 884 | . 91 170 327 214 82 Hop 4 | . . 4 . . . Pick Up 7 | . . 2 4 1 . Fast Attach 16 | . 7 8 1 . . Attach 3 | . . 1 1 . 1 Detach 3 | . . 2 . . 1 Swap 3 | . . . 1 . 2 Drop 12 | . . 6 3 1 2 Fire 9 | . 1 5 . . 3 Melee . | . . . . . . Ram . | . . . . . . Kick . | . . . . . . Crush . | . . . . . . Escape Stasis . | . . . . . . Rewire . | . . . . . . Trap . | . . . . . . Miscellaneous . | . . . . . . Route ------- -11/Scrapyard -10/Materials -9/Materials -9/Mines (discovered 2 exits: [*Mat] / *Exi) -9/Exiles -8/Mines History --------- Turn | Location | Event 1 | -11/Scrapyard | Released all parts (6) 1 | -11/Scrapyard | Discovered new exit (range 0) 1 | -11/Scrapyard | Entered Materials 44 | -10/Materials | Discovered new exit (range 16) 54 | -10/Materials | Entered another Materials area 54 | -9/Materials | Evolved 2 slots: Propulsion x1, Utility x1 103 | -9/Materials | Discovered new exit (range 14) 125 | -9/Materials | Met 8R-AWN 135 | -9/Materials | Lost 4 parts (2p2n) 173 | -9/Materials | Entered Mines 174 | -9/Mines | Followed 8R-AWN into the Mines 198 | -9/Mines | Found a hidden stash of uninstalled traps 227 | -9/Mines | Received a Rocket Launcher from a helpful Derelict 231 | -9/Mines | Escorted by a lone wolf Derelict 278 | -9/Mines | Discovered new exit (range 11) 324 | -9/Mines | Discovered new exit (range 5) 325 | -9/Mines | Entered Exiles 334 | -9/Exiles | Welcomed by 8R-AWN 339 | -9/Exiles | Met EX-HEX 349 | -9/Exiles | Met EX-BIN 354 | -9/Exiles | Aligned with FarCom system 354 | -9/Exiles | Given EX-Vault access code 362 | -9/Exiles | Opened EX-Vault 365 | -9/Exiles | Found Longsword +1 373 | -9/Exiles | Warned to stay clear of 0b10 Research branches 384 | -9/Exiles | Met EX-DEC 396 | -9/Exiles | Discovered new exit (range 11) 400 | -9/Exiles | Left Exiles lab with Longsword +1 400 | -9/Exiles | Entered Mines 432 | -8/Mines | Destroyed 8 combat bots 440 | -8/Mines | Self-destructed Last Messages --------------- network. EX-DEC: Ah I see we have a visitor. One wrong move in here and I'll invert your atomic chain! 00386_ EX-DEC: "Oops, I hope HEX didn't hear that..." 00396_ EXIT=FOUND LOCATION=UNKNOWN GOAL=ESCAPE 00400_ Receiving FarCom transmissions... 00407_ S-10 Pest destroyed. 00407_ Destroyed Lgt. Ion Engine. 00407_ S-10 Pest destroyed. 00407_ Destroyed Flight Unit. 00407_ S-10 Pest destroyed. 00411_ Destroyed Lgt. Ion Engine. 00411_ S-10 Pest destroyed. 00414_ The unstable cave ceiling collapses. 00414_ Dropped Flight Unit. 00418_ The unstable cave ceiling collapses. 00418_ Acquired 1 matter. 00420_ U-05 Engineer lays Concrete. Map ----- +----------------------------------------------------+ | ???????????????????????## ## ##????? | | ???????????????????????# #### #?????? | | ??????????????????????## ##??# #?????? | | ??????????????????????# ##???#####?????? | | ??????????????????????# #??????????????? | | ??????????????????##### #??????????????? | | ??????????????????# ##??????????????? | | ??????????????????? #### ##???????????????? | | ???????????????????????#### ##?#######????????? | | ??????????????????????????## #### ##???????? | | ???????????????????????????## ## ##??????? | | ????????????????????????????# ##?????? | | ???????????????????????????## ##?? | | ???????????????????????????# ## | | ???????????????????????????# | | ???????????????????????????## | | ????????????????????????????## ## ? | | ?????????????????????????????###### #?????? | | ?????????????????????????????????## #?????? | | ?????????????????????????????##### ##?????? | | ????????????????????????????## ##??????? | | ???????????????????????????## ##???????? | | ??????????????????????????## #####????????? | | ??????????????????????????# t ##????????????? | | ???????????????????# ##### ##?????????????? | | ???????????????????# @ ## ##??????????????? | | ???????????????????# ### #???????????????? | | ???????????????????###########?# #???????????????? | | ???????????????????????????????# #???????????????? | | ???????????????????????????????# ???????????????? | | ???????????????????????????????# ??l?g?g????????? | | ???????????????????????????????###???????????????? | | ?????????????????????????????????????????????????? | | ?????????????????????????????????????????????????? | | ?????????????????????????????????????????????????? | | ?????????????????????????????????????????????????? | | ?????????????????????????????????????????????????? | | ?????????????????????????????????????????????????? | | ?????????????????????????????????????????????????? | | ?????????????????????????????????????????????????? | | ?????????????????????????????????????????????????? | | ?????????????????????????????????????????????????? | | ?????????????????????????????????????????????????? | | | | | | | | | | | | | | | +----------------------------------------------------+ Best States ------------- Heat Dissipation 28 Energy Generation 12 Energy Capacity 265 Matter Stores 300 Matter Capacity 300 Sight Range 16 Terrain Scan Density 10 Armor Coverage 150 Utility Shielding 33 Evasion (%) 63 Item Schematics ----------------- None Robot Schematics ------------------ None Fabricated ------------ Nothing Repaired ---------- Nothing Alien Tech Used ----------------- None Achievements -------------- None Challenges ------------ None Game ------ Seed DirtyCountertargetingNetwork Manual? 0 Play Time 00:08:05 Cumulative 544.3 hours Start 2025.06.19 @ 07:16:36 End 2025.06.19 @ 07:24:18 Sessions 1 Manual Loads 0 Difficulty Rogue Special Mode None Game No. 657 Rogue 657 Adventurer 0 Explorer 0 Win Type - Total 19 Types 13/0/5/1/0/0/0/0/0/0 Lore% 84 Gallery% 83 Achievement% 82 Wizard Run 0 Options --------- Layout 0 ASCII 0 Keyboard 0 Movement Numpad Keybinds 0 Fullscreen 1 Font 18/SmallcapsGlow Map View 76x50 Zoom Use 0% Tactical HUD 1 Map Filters NONE Filters NONE Steam 1 RUN: f35e196a-2fd5-4d1c-be0c-59fc277da7ac